[Event "Late-Titled-Tuesday-Blitz-February-20-2024"]
[Site "Chess.com"]
[Date "2024.02.20"]
[Round "4"]
[White "IMRosen"]
[Black "platy3"]
[Result "0-1"]
[WhiteElo "2692"]
[BlackElo "2954"]
[TimeControl "180+1"]
[EndTime "14:38:59 PST"]
[Termination "platy3 won on time"]

1. e4 {[%clk 0:02:55]} 1... e5 {[%clk 0:03:00.5]} 2. Nf3 {[%clk 0:02:52.7]} 2...
Nc6 {[%clk 0:03:01]} 3. Nc3 {[%clk 0:02:53]} 3... Nf6 {[%clk 0:02:58.8]} 4. d4
{[%clk 0:02:52.9]} 4... exd4 {[%clk 0:02:59.4]} 5. Nxd4 {[%clk 0:02:53.8]} 5...
Bb4 {[%clk 0:02:59.7]} 6. Nxc6 {[%clk 0:02:53.7]} 6... bxc6 {[%clk 0:03:00.6]}
7. Bd3 {[%clk 0:02:54.3]} 7... d5 {[%clk 0:03:01.2]} 8. Bd2 {[%clk 0:02:54.4]}
8... O-O {[%clk 0:03:01]} 9. O-O {[%clk 0:02:54.9]} 9... Rb8 {[%clk 0:03:01.3]}
10. Re1 {[%clk 0:02:54.8]} 10... Bg4 {[%clk 0:02:58.4]} 11. Qc1 {[%clk
0:02:50.9]} 11... Re8 {[%clk 0:02:46.4]} 12. e5 {[%clk 0:02:46.7]} 12... Nd7
{[%clk 0:02:43.6]} 13. h3 {[%clk 0:02:47.2]} 13... Bh5 {[%clk 0:02:42.6]} 14. f4
{[%clk 0:02:47.1]} 14... Nc5 {[%clk 0:02:19.5]} 15. Bf1 {[%clk 0:02:04.7]} 15...
f5 {[%clk 0:02:00.1]} 16. a3 {[%clk 0:01:44.7]} 16... Bxc3 {[%clk 0:01:57.6]}
17. Bxc3 {[%clk 0:01:45.6]} 17... Ne6 {[%clk 0:01:57]} 18. Bd3 {[%clk
0:01:30.3]} 18... Rf8 {[%clk 0:01:53.4]} 19. b4 {[%clk 0:01:27.5]} 19... Qh4
{[%clk 0:01:47]} 20. Bd2 {[%clk 0:01:20.6]} 20... Kh8 {[%clk 0:01:36.1]} 21. Rf1
{[%clk 0:01:20.8]} 21... Qe7 {[%clk 0:01:27.1]} 22. Qe1 {[%clk 0:01:07.4]} 22...
c5 {[%clk 0:01:22.3]} 23. c3 {[%clk 0:01:07.2]} 23... c4 {[%clk 0:01:18.5]} 24.
Be2 {[%clk 0:01:02.4]} 24... Bxe2 {[%clk 0:01:17.9]} 25. Qxe2 {[%clk 0:01:03.3]}
25... c5 {[%clk 0:01:17.1]} 26. Rad1 {[%clk 0:00:44.6]} 26... a5 {[%clk
0:01:04.2]} 27. Be3 {[%clk 0:00:39.1]} 27... d4 {[%clk 0:00:46.1]} 28. cxd4
{[%clk 0:00:38.5]} 28... cxd4 {[%clk 0:00:46.9]} 29. Bxd4 {[%clk 0:00:37.7]}
29... axb4 {[%clk 0:00:47.6]} 30. Qxc4 {[%clk 0:00:30.8]} 30... bxa3 {[%clk
0:00:47.2]} 31. Ba1 {[%clk 0:00:21.7]} 31... Rfc8 {[%clk 0:00:42.9]} 32. Qa2
{[%clk 0:00:20.5]} 32... Rc6 {[%clk 0:00:27.3]} 33. Rd3 {[%clk 0:00:12.7]} 33...
Ra6 {[%clk 0:00:25.1]} 34. Kh2 {[%clk 0:00:08.6]} 34... h6 {[%clk 0:00:23.4]}
35. Rff3 {[%clk 0:00:08.3]} 35... Rba8 {[%clk 0:00:20.5]} 36. Rfe3 {[%clk
0:00:02.9]} 36... Qb4 {[%clk 0:00:17.3]} 37. Rf3 {[%clk 0:00:02.3]} 37... Qe7
{[%clk 0:00:05.6]} 38. Rg3 {[%clk 0:00:01.5]} 38... Nc5 {[%clk 0:00:05.1]} 39.
Rd5 {[%clk 0:00:01.6]} 39... Ne4 {[%clk 0:00:05.3]} 40. Re3 {[%clk 0:00:02]}
40... Qh4 {[%clk 0:00:04.9]} 41. g3 {[%clk 0:00:01.5]} 41... Qh5 {[%clk
0:00:05.1]} 42. Rdd3 {[%clk 0:00:01.4]} 42... Rc8 {[%clk 0:00:02.2]} 0-1

[Event "Late-Titled-Tuesday-Blitz-February-20-2024"]
[Site "Chess.com"]
[Date "2024.02.20"]
[Round "4"]
[White "Genghis_K"]
[Black "ahkashefi2800"]
[Result "1-0"]
[WhiteElo "2944"]
[BlackElo "2549"]
[TimeControl "180+1"]
[EndTime "14:38:59 PST"]
[Termination "Genghis_K won by checkmate"]

1. e4 {[%clk 0:02:27.2]} 1... c6 {[%clk 0:02:57.2]} 2. Nf3 {[%clk 0:02:26.9]}
2... d5 {[%clk 0:02:57]} 3. Nc3 {[%clk 0:02:27.8]} 3... dxe4 {[%clk 0:02:56.7]}
4. Nxe4 {[%clk 0:02:28.7]} 4... Nd7 {[%clk 0:02:54.7]} 5. Qe2 {[%clk 0:02:28.9]}
5... Ndf6 {[%clk 0:02:53.4]} 6. d4 {[%clk 0:02:12.8]} 6... Bg4 {[%clk 0:02:53]}
7. c3 {[%clk 0:02:11.3]} 7... Qd5 {[%clk 0:02:52]} 8. h3 {[%clk 0:02:02.6]} 8...
Bxf3 {[%clk 0:02:39.9]} 9. gxf3 {[%clk 0:02:03.5]} 9... O-O-O {[%clk 0:02:33.2]}
10. h4 {[%clk 0:01:56.7]} 10... h5 {[%clk 0:02:30.6]} 11. Ng5 {[%clk 0:01:55]}
11... Nh6 {[%clk 0:02:26.5]} 12. Bh3+ {[%clk 0:01:32.1]} 12... Kb8 {[%clk
0:02:25.9]} 13. Bf4+ {[%clk 0:01:32.1]} 13... Ka8 {[%clk 0:02:25.3]} 14. O-O
{[%clk 0:01:26.3]} 14... e6 {[%clk 0:02:05.3]} 15. c4 {[%clk 0:01:23.4]} 15...
Qd7 {[%clk 0:01:41.4]} 16. Rfd1 {[%clk 0:01:01.3]} 16... Bd6 {[%clk 0:01:41.4]}
17. Be5 {[%clk 0:00:58.8]} 17... Qe7 {[%clk 0:01:38]} 18. Bg3 {[%clk 0:00:33.6]}
18... Qc7 {[%clk 0:01:11.3]} 19. Kg2 {[%clk 0:00:32]} 19... Nf5 {[%clk
0:01:00.5]} 20. Bxf5 {[%clk 0:00:29.5]} 20... exf5 {[%clk 0:01:00.5]} 21. Bxd6
{[%clk 0:00:23.6]} 21... Rxd6 {[%clk 0:01:00.3]} 22. Qe5 {[%clk 0:00:22.6]}
22... Rhd8 {[%clk 0:00:42.7]} 23. Rd2 {[%clk 0:00:13.7]} 23... g6 {[%clk
0:00:29.5]} 24. c5 {[%clk 0:00:13.8]} 24... Qa5 {[%clk 0:00:14.9]} 25. cxd6
{[%clk 0:00:11.3]} 25... Qxd2 {[%clk 0:00:13.3]} 26. Qxf6 {[%clk 0:00:12]} 26...
Qa5 {[%clk 0:00:07.6]} 27. Nxf7 {[%clk 0:00:10.9]} 27... Rf8 {[%clk 0:00:03.1]}
28. d7 {[%clk 0:00:10.9]} 28... a6 {[%clk 0:00:01.8]} 29. d8=Q+ {[%clk
0:00:11.4]} 29... Rxd8 {[%clk 0:00:01.7]} 30. Qxd8+ {[%clk 0:00:12.3]} 30...
Qxd8 {[%clk 0:00:01.7]} 31. Nxd8 {[%clk 0:00:13.2]} 31... Ka7 {[%clk 0:00:01.6]}
32. Ne6 {[%clk 0:00:13.7]} 32... Kb8 {[%clk 0:00:02.5]} 33. Nf4 {[%clk
0:00:14.3]} 33... Kc8 {[%clk 0:00:01.4]} 34. Nxg6 {[%clk 0:00:15.2]} 34... Kc7
{[%clk 0:00:01.9]} 35. Nf4 {[%clk 0:00:16.1]} 35... Kd6 {[%clk 0:00:01.9]} 36.
Rd1 {[%clk 0:00:17]} 36... c5 {[%clk 0:00:02.1]} 37. Nxh5 {[%clk 0:00:17.9]}
37... c4 {[%clk 0:00:02.4]} 38. Nf4 {[%clk 0:00:18.1]} 38... b5 {[%clk
0:00:02.7]} 39. h5 {[%clk 0:00:18.8]} 39... b4 {[%clk 0:00:02.1]} 40. h6 {[%clk
0:00:19.7]} 40... a5 {[%clk 0:00:01.6]} 41. h7 {[%clk 0:00:20.1]} 41... a4
{[%clk 0:00:01.8]} 42. h8=Q {[%clk 0:00:20.5]} 42... Kc6 {[%clk 0:00:02.2]} 43.
Qe5 {[%clk 0:00:20.7]} 43... a3 {[%clk 0:00:02.3]} 44. Rh1 {[%clk 0:00:21.6]}
44... b3 {[%clk 0:00:01.9]} 45. Rh6+ {[%clk 0:00:22.5]} 45... Kb7 {[%clk
0:00:02]} 46. Qg7+ {[%clk 0:00:23.4]} 46... Kb8 {[%clk 0:00:01.2]} 47. Rh8#
{[%clk 0:00:24.3]} 1-0

[Event "Late-Titled-Tuesday-Blitz-February-20-2024"]
[Site "Chess.com"]
[Date "2024.02.20"]
[Round "4"]
[White "flubs"]
[Black "adwilhans"]
[Result "0-1"]
[WhiteElo "2457"]
[BlackElo "2340"]
[TimeControl "180+1"]
[EndTime "14:39:00 PST"]
[Termination "adwilhans won on time"]

1. c4 {[%clk 0:03:00.9]} 1... e5 {[%clk 0:02:58.4]} 2. Nc3 {[%clk 0:02:59]} 2...
Nc6 {[%clk 0:02:56.9]} 3. g3 {[%clk 0:02:57.5]} 3... f5 {[%clk 0:02:56]} 4. Bg2
{[%clk 0:02:56.7]} 4... Nf6 {[%clk 0:02:56]} 5. e3 {[%clk 0:02:54.6]} 5... Bb4
{[%clk 0:02:55.1]} 6. Nge2 {[%clk 0:02:53.7]} 6... Bxc3 {[%clk 0:02:55.3]} 7.
Nxc3 {[%clk 0:02:51.9]} 7... O-O {[%clk 0:02:55.9]} 8. O-O {[%clk 0:02:48.4]}
8... d6 {[%clk 0:02:55.9]} 9. d3 {[%clk 0:02:40.9]} 9... Ne7 {[%clk 0:02:55.1]}
10. f4 {[%clk 0:02:35.6]} 10... exf4 {[%clk 0:02:46.8]} 11. gxf4 {[%clk
0:02:34.3]} 11... c6 {[%clk 0:02:46.7]} 12. d4 {[%clk 0:02:20.2]} 12... Be6
{[%clk 0:02:43]} 13. b3 {[%clk 0:02:17.3]} 13... Qc7 {[%clk 0:02:27.6]} 14. Ba3
{[%clk 0:02:06.1]} 14... Rad8 {[%clk 0:02:25.2]} 15. Rc1 {[%clk 0:01:39.5]}
15... Qa5 {[%clk 0:02:10.7]} 16. Bb2 {[%clk 0:01:35.1]} 16... Rfe8 {[%clk
0:02:05.7]} 17. Qc2 {[%clk 0:01:30.1]} 17... d5 {[%clk 0:01:59.6]} 18. c5 {[%clk
0:01:21.1]} 18... Qc7 {[%clk 0:01:50]} 19. Nd1 {[%clk 0:01:19.3]} 19... Ne4
{[%clk 0:01:47.1]} 20. Nf2 {[%clk 0:01:16.3]} 20... Nxf2 {[%clk 0:01:45.6]} 21.
Rxf2 {[%clk 0:01:14.7]} 21... Bf7 {[%clk 0:01:45.5]} 22. Rf3 {[%clk 0:01:13.5]}
22... Kh8 {[%clk 0:01:38.7]} 23. Rh3 {[%clk 0:01:11.2]} 23... Qd7 {[%clk
0:01:33.5]} 24. Rf1 {[%clk 0:01:08]} 24... Ng8 {[%clk 0:01:33]} 25. Rff3 {[%clk
0:01:03.4]} 25... Nf6 {[%clk 0:01:32.6]} 26. Rfg3 {[%clk 0:00:56.9]} 26... Re7
{[%clk 0:01:27.1]} 27. Bc1 {[%clk 0:00:50.5]} 27... Rde8 {[%clk 0:01:25.4]} 28.
Bf3 {[%clk 0:00:45.6]} 28... Ne4 {[%clk 0:01:14.5]} 29. Bxe4 {[%clk 0:00:44]}
29... Rxe4 {[%clk 0:01:14.2]} 30. Qg2 {[%clk 0:00:40.3]} 30... Bg8 {[%clk
0:01:10]} 31. Rg5 {[%clk 0:00:36.9]} 31... b6 {[%clk 0:01:06.9]} 32. b4 {[%clk
0:00:32.5]} 32... bxc5 {[%clk 0:01:06.5]} 33. bxc5 {[%clk 0:00:33.4]} 33... Rb8
{[%clk 0:01:04.6]} 34. Qc2 {[%clk 0:00:25.7]} 34... Qb7 {[%clk 0:00:40.4]} 35.
Rxf5 {[%clk 0:00:25.5]} 35... Qb1 {[%clk 0:00:39.9]} 36. Qd2 {[%clk 0:00:25.8]}
36... Qa1 {[%clk 0:00:37.9]} 37. Rf3 {[%clk 0:00:22.3]} 37... Ree8 {[%clk
0:00:22.7]} 38. Re5 {[%clk 0:00:20.8]} 38... Rf8 {[%clk 0:00:18.6]} 39. Re7
{[%clk 0:00:19.9]} 39... Rf6 {[%clk 0:00:18.3]} 40. Kf2 {[%clk 0:00:11.3]} 40...
Rh6 {[%clk 0:00:17.8]} 41. h3 {[%clk 0:00:08.6]} 41... Rb1 {[%clk 0:00:17]} 42.
Ba3 {[%clk 0:00:03.8]} 42... Rf1+ {[%clk 0:00:16.8]} 43. Ke2 {[%clk 0:00:03.6]}
43... Rxf3 {[%clk 0:00:16.8]} 44. Kxf3 {[%clk 0:00:04.5]} 44... Rxh3+ {[%clk
0:00:16.9]} 45. Kg4 {[%clk 0:00:01.8]} 45... Qh1 {[%clk 0:00:13.9]} 0-1

[Event "Late-Titled-Tuesday-Blitz-February-20-2024"]
[Site "Chess.com"]
[Date "2024.02.20"]
[Round "4"]
[White "Nick12772"]
[Black "penguingm1"]
[Result "0-1"]
[WhiteElo "2386"]
[BlackElo "2833"]
[TimeControl "180+1"]
[EndTime "14:39:01 PST"]
[Termination "penguingm1 won by checkmate"]

1. Nf3 {[%clk 0:03:00.9]} 1... b5 {[%clk 0:03:00.9]} 2. g3 {[%clk 0:02:59.7]}
2... d5 {[%clk 0:02:58.8]} 3. Bg2 {[%clk 0:02:59.7]} 3... Nd7 {[%clk 0:02:59.2]}
4. d4 {[%clk 0:02:59.5]} 4... Bb7 {[%clk 0:02:59.6]} 5. O-O {[%clk 0:02:59.9]}
5... e6 {[%clk 0:03:00.1]} 6. Bf4 {[%clk 0:02:59.3]} 6... c5 {[%clk 0:03:00.3]}
7. c3 {[%clk 0:02:47.3]} 7... a5 {[%clk 0:02:59.4]} 8. Nbd2 {[%clk 0:02:46.8]}
8... Ngf6 {[%clk 0:02:58.6]} 9. Re1 {[%clk 0:02:37.5]} 9... Be7 {[%clk
0:02:58.3]} 10. dxc5 {[%clk 0:02:36.9]} 10... Bxc5 {[%clk 0:02:59.2]} 11. Nb3
{[%clk 0:02:33.4]} 11... Bb6 {[%clk 0:02:59.1]} 12. Nbd4 {[%clk 0:02:29.6]}
12... Ne4 {[%clk 0:02:56.9]} 13. Ne5 {[%clk 0:02:05]} 13... Ndf6 {[%clk
0:02:45.1]} 14. Be3 {[%clk 0:01:44.8]} 14... O-O {[%clk 0:02:42.3]} 15. Nxb5
{[%clk 0:01:35.3]} 15... Bxe3 {[%clk 0:02:42.2]} 16. fxe3 {[%clk 0:01:36.2]}
16... Qb6 {[%clk 0:02:37.7]} 17. Nd4 {[%clk 0:01:34]} 17... Qxb2 {[%clk
0:02:37.8]} 18. Rb1 {[%clk 0:01:27.2]} 18... Qxc3 {[%clk 0:02:37.7]} 19. Qd3
{[%clk 0:01:12.4]} 19... Qc7 {[%clk 0:02:32.7]} 20. Rec1 {[%clk 0:01:08.3]}
20... Qxe5 {[%clk 0:02:11.6]} 21. Rxb7 {[%clk 0:01:07.5]} 21... Nd6 {[%clk
0:02:09.7]} 22. Rb3 {[%clk 0:00:59.6]} 22... Nc4 {[%clk 0:01:56.1]} 23. Nc6
{[%clk 0:00:55.5]} 23... Qg5 {[%clk 0:01:53.6]} 24. Rf1 {[%clk 0:00:36]} 24...
a4 {[%clk 0:01:49.9]} 25. Rc3 {[%clk 0:00:36.1]} 25... Ng4 {[%clk 0:01:44.9]}
26. e4 {[%clk 0:00:28.4]} 26... Nce5 {[%clk 0:01:12.3]} 27. Nxe5 {[%clk
0:00:26.1]} 27... Nxe5 {[%clk 0:01:12.4]} 28. Qd4 {[%clk 0:00:19]} 28... dxe4
{[%clk 0:01:06.3]} 29. Qxe4 {[%clk 0:00:15.2]} 29... Ra5 {[%clk 0:01:03.5]} 30.
Rc7 {[%clk 0:00:13.9]} 30... h6 {[%clk 0:00:59.9]} 31. Kh1 {[%clk 0:00:11.5]}
31... Qd8 {[%clk 0:00:59.8]} 32. Rb7 {[%clk 0:00:08.2]} 32... Qd2 {[%clk
0:00:58.5]} 33. Qb4 {[%clk 0:00:06.2]} 33... Qxb4 {[%clk 0:00:58.5]} 34. Rxb4
{[%clk 0:00:07.1]} 34... a3 {[%clk 0:00:58.8]} 35. Rfb1 {[%clk 0:00:07.2]} 35...
g5 {[%clk 0:00:59.1]} 36. Bf3 {[%clk 0:00:07.4]} 36... Kg7 {[%clk 0:00:58.9]}
37. Rb7 {[%clk 0:00:06.9]} 37... Rc8 {[%clk 0:00:59.1]} 38. Kg2 {[%clk
0:00:05.9]} 38... Rc2 {[%clk 0:00:59.3]} 39. R7b5 {[%clk 0:00:03.2]} 39... Rxb5
{[%clk 0:00:57.8]} 40. Rxb5 {[%clk 0:00:04.1]} 40... Kf6 {[%clk 0:00:56.9]} 41.
Ra5 {[%clk 0:00:04.5]} 41... Rxa2 {[%clk 0:00:56.8]} 42. Kf2 {[%clk 0:00:05.1]}
42... Ra1 {[%clk 0:00:51.9]} 43. Ra7 {[%clk 0:00:05.3]} 43... a2 {[%clk
0:00:52.1]} 44. Be4 {[%clk 0:00:05.4]} 44... Ng4+ {[%clk 0:00:49.8]} 45. Kg2
{[%clk 0:00:05.4]} 45... Ne3+ {[%clk 0:00:44.3]} 46. Kf3 {[%clk 0:00:05]} 46...
Nd1 {[%clk 0:00:44.3]} 47. Bd3 {[%clk 0:00:03.8]} 47... Nc3 {[%clk 0:00:44.5]}
48. Bc4 {[%clk 0:00:04.5]} 48... Rf1+ {[%clk 0:00:44.4]} 49. Kg2 {[%clk
0:00:04.7]} 49... a1=Q {[%clk 0:00:45.3]} 50. Rxa1 {[%clk 0:00:04.3]} 50... Rxa1
{[%clk 0:00:46.2]} 51. Kf3 {[%clk 0:00:04.2]} 51... h5 {[%clk 0:00:46.4]} 52.
Kg2 {[%clk 0:00:04]} 52... Ke5 {[%clk 0:00:46.8]} 53. Bd3 {[%clk 0:00:04.6]}
53... f5 {[%clk 0:00:47.1]} 54. h3 {[%clk 0:00:04.4]} 54... Nd5 {[%clk
0:00:47.4]} 55. h4 {[%clk 0:00:03.8]} 55... gxh4 {[%clk 0:00:47.1]} 56. gxh4
{[%clk 0:00:04.7]} 56... Nf4+ {[%clk 0:00:47.5]} 57. Kg3 {[%clk 0:00:04.1]}
57... Nxd3 {[%clk 0:00:47.8]} 58. exd3 {[%clk 0:00:05]} 58... Ra4 {[%clk
0:00:48.3]} 59. Kh3 {[%clk 0:00:05]} 59... Rg4 {[%clk 0:00:48.8]} 60. d4+ {[%clk
0:00:05.4]} 60... Kxd4 {[%clk 0:00:49.3]} 61. Kh2 {[%clk 0:00:05.8]} 61... Ke3
{[%clk 0:00:50.1]} 62. Kh3 {[%clk 0:00:06.4]} 62... Kf2 {[%clk 0:00:50.9]} 63.
Kh2 {[%clk 0:00:07.2]} 63... e5 {[%clk 0:00:51.3]} 64. Kh3 {[%clk 0:00:07.5]}
64... e4 {[%clk 0:00:51.8]} 65. Kh2 {[%clk 0:00:08.4]} 65... e3 {[%clk
0:00:52.3]} 66. Kh3 {[%clk 0:00:09.3]} 66... e2 {[%clk 0:00:51.9]} 67. Kh2
{[%clk 0:00:10.2]} 67... e1=N {[%clk 0:00:47.9]} 68. Kh3 {[%clk 0:00:11.1]}
68... f4 {[%clk 0:00:48.3]} 69. Kh2 {[%clk 0:00:12]} 69... Ke2 {[%clk
0:00:48.5]} 70. Kh3 {[%clk 0:00:12.9]} 70... f3 {[%clk 0:00:49]} 71. Kh2 {[%clk
0:00:13.8]} 71... f2 {[%clk 0:00:49.7]} 72. Kh3 {[%clk 0:00:14.7]} 72... Ke3
{[%clk 0:00:49]} 73. Kh2 {[%clk 0:00:15.6]} 73... Nd3 {[%clk 0:00:46.5]} 74. Kh3
{[%clk 0:00:16.5]} 74... Kd4 {[%clk 0:00:46.4]} 75. Kh2 {[%clk 0:00:17.4]} 75...
f1=N+ {[%clk 0:00:46.1]} 76. Kh3 {[%clk 0:00:18.3]} 76... Nf2# {[%clk
0:00:46.8]} 0-1

[Event "Late-Titled-Tuesday-Blitz-February-20-2024"]
[Site "Chess.com"]
[Date "2024.02.20"]
[Round "4"]
[White "Bilan_Danila"]
[Black "Goryachkina"]
[Result "0-1"]
[WhiteElo "2464"]
[BlackElo "2690"]
[TimeControl "180+1"]
[EndTime "14:39:02 PST"]
[Termination "Goryachkina won on time"]

1. d4 {[%clk 0:03:00.2]} 1... Nf6 {[%clk 0:02:59.4]} 2. Nf3 {[%clk 0:03:00.3]}
2... d5 {[%clk 0:02:59.2]} 3. c4 {[%clk 0:03:00.3]} 3... e6 {[%clk 0:02:59.2]}
4. Nc3 {[%clk 0:03:00.4]} 4... dxc4 {[%clk 0:02:58.8]} 5. e3 {[%clk 0:02:58.9]}
5... a6 {[%clk 0:02:50.7]} 6. Bxc4 {[%clk 0:02:58.6]} 6... b6 {[%clk 0:02:47.9]}
7. O-O {[%clk 0:02:51.3]} 7... Bb7 {[%clk 0:02:47.9]} 8. Qe2 {[%clk 0:02:45.9]}
8... Nbd7 {[%clk 0:02:39.6]} 9. e4 {[%clk 0:02:44.2]} 9... b5 {[%clk 0:02:33.4]}
10. Bb3 {[%clk 0:02:41.5]} 10... b4 {[%clk 0:02:27.4]} 11. e5 {[%clk 0:02:35.5]}
11... bxc3 {[%clk 0:02:25.7]} 12. exf6 {[%clk 0:02:35.8]} 12... Nxf6 {[%clk
0:02:10.5]} 13. bxc3 {[%clk 0:02:32.3]} 13... Bd6 {[%clk 0:02:10]} 14. Bg5
{[%clk 0:02:27.6]} 14... O-O {[%clk 0:02:07.2]} 15. Ne5 {[%clk 0:02:22.5]} 15...
Be7 {[%clk 0:02:01]} 16. Rab1 {[%clk 0:02:13.8]} 16... a5 {[%clk 0:01:36.1]} 17.
Bxe6 {[%clk 0:02:03.8]} 17... fxe6 {[%clk 0:00:50.3]} 18. Rxb7 {[%clk
0:02:01.7]} 18... Qd6 {[%clk 0:00:49.6]} 19. Rfb1 {[%clk 0:01:27.7]} 19... Nd5
{[%clk 0:00:48.5]} 20. Bxe7 {[%clk 0:01:22.8]} 20... Qxe7 {[%clk 0:00:48.5]} 21.
Qd2 {[%clk 0:01:13.3]} 21... Nf4 {[%clk 0:00:45.9]} 22. Nd3 {[%clk 0:01:03.5]}
22... Ng6 {[%clk 0:00:38.5]} 23. Qe3 {[%clk 0:00:58.2]} 23... Nh4 {[%clk
0:00:31.9]} 24. Nc5 {[%clk 0:00:46.2]} 24... Rae8 {[%clk 0:00:29.7]} 25. Ra7
{[%clk 0:00:35.8]} 25... Qf6 {[%clk 0:00:19.5]} 26. Rxc7 {[%clk 0:00:29]} 26...
Qg6 {[%clk 0:00:15.6]} 27. Qe4 {[%clk 0:00:13.8]} 27... Rf5 {[%clk 0:00:08.4]}
28. Rbb7 {[%clk 0:00:11.1]} 28... Nf3+ {[%clk 0:00:02]} 29. Qxf3 {[%clk
0:00:05.9]} 29... Rxf3 {[%clk 0:00:02]} 30. Rxg7+ {[%clk 0:00:06.6]} 30... Qxg7
{[%clk 0:00:02.6]} 31. Rxg7+ {[%clk 0:00:07.5]} 31... Kxg7 {[%clk 0:00:03.5]}
32. gxf3 {[%clk 0:00:07.5]} 32... Kf6 {[%clk 0:00:04]} 33. Kf1 {[%clk 0:00:07]}
33... Ke7 {[%clk 0:00:04.3]} 34. Ke2 {[%clk 0:00:05.1]} 34... Rb8 {[%clk
0:00:04.5]} 35. Ke3 {[%clk 0:00:02.8]} 35... Rb2 {[%clk 0:00:04.4]} 36. a4
{[%clk 0:00:03.5]} 36... Rc2 {[%clk 0:00:04]} 0-1

[Event "Late-Titled-Tuesday-Blitz-February-20-2024"]
[Site "Chess.com"]
[Date "2024.02.20"]
[Round "4"]
[White "Navyblue1"]
[Black "Cambek64"]
[Result "1-0"]
[WhiteElo "2199"]
[BlackElo "2425"]
[TimeControl "180+1"]
[EndTime "14:39:03 PST"]
[Termination "Navyblue1 won by resignation"]

1. d4 {[%clk 0:02:56]} 1... f5 {[%clk 0:01:48.2]} 2. e4 {[%clk 0:02:52.7]} 2...
fxe4 {[%clk 0:01:47.4]} 3. Nc3 {[%clk 0:02:50.8]} 3... Nf6 {[%clk 0:01:47.9]} 4.
Bg5 {[%clk 0:02:47.2]} 4... e6 {[%clk 0:01:48.3]} 5. Nxe4 {[%clk 0:02:44.9]}
5... Be7 {[%clk 0:01:48.7]} 6. Bxf6 {[%clk 0:02:30.7]} 6... Bxf6 {[%clk
0:01:47.7]} 7. Nf3 {[%clk 0:02:29]} 7... O-O {[%clk 0:01:47.4]} 8. Bd3 {[%clk
0:02:27.6]} 8... d5 {[%clk 0:01:47.7]} 9. Nxf6+ {[%clk 0:02:25.5]} 9... gxf6
{[%clk 0:01:48.3]} 10. c4 {[%clk 0:02:12.4]} 10... Nc6 {[%clk 0:01:47.5]} 11.
cxd5 {[%clk 0:02:10.6]} 11... Qxd5 {[%clk 0:01:46.7]} 12. O-O {[%clk 0:02:07.5]}
12... Kh8 {[%clk 0:01:46.2]} 13. Bc2 {[%clk 0:02:02.4]} 13... Rg8 {[%clk
0:01:46.1]} 14. Qd3 {[%clk 0:01:54.4]} 14... Rg7 {[%clk 0:01:44.2]} 15. Kh1
{[%clk 0:01:48.2]} 15... b6 {[%clk 0:01:43]} 16. Qe4 {[%clk 0:01:40.2]} 16...
Ne7 {[%clk 0:01:38.4]} 17. Qxd5 {[%clk 0:01:27.7]} 17... Nxd5 {[%clk 0:01:37.4]}
18. Rfe1 {[%clk 0:01:27.3]} 18... Bd7 {[%clk 0:01:34.1]} 19. Be4 {[%clk
0:01:23.2]} 19... c6 {[%clk 0:01:33.4]} 20. Rac1 {[%clk 0:01:20.2]} 20... Rc8
{[%clk 0:01:31.1]} 21. Nd2 {[%clk 0:01:16.6]} 21... Rgg8 {[%clk 0:01:28.5]} 22.
g3 {[%clk 0:01:05.6]} 22... Kg7 {[%clk 0:01:28.6]} 23. Nc4 {[%clk 0:01:03.1]}
23... Rgd8 {[%clk 0:01:28.2]} 24. Nd6 {[%clk 0:00:57.6]} 24... Rb8 {[%clk
0:01:26.4]} 25. Bxd5 {[%clk 0:00:51.5]} 25... cxd5 {[%clk 0:01:25.2]} 26. Rc7
{[%clk 0:00:50.2]} 26... a5 {[%clk 0:01:25.7]} 27. Rec1 {[%clk 0:00:45.6]} 27...
Kg6 {[%clk 0:01:19.6]} 28. Nb7 {[%clk 0:00:44.8]} 28... Bb5 {[%clk 0:01:10.4]}
29. Nxd8 {[%clk 0:00:43.5]} 29... Rxd8 {[%clk 0:01:10.7]} 30. R1c3 {[%clk
0:00:42]} 30... Rd6 {[%clk 0:01:06.9]} 31. Re7 {[%clk 0:00:40.8]} 31... h5
{[%clk 0:00:57.1]} 32. Kg2 {[%clk 0:00:39]} 32... a4 {[%clk 0:00:55.6]} 33. b3
{[%clk 0:00:34.6]} 33... a3 {[%clk 0:00:45.5]} 34. b4 {[%clk 0:00:29.5]} 34...
Kf5 {[%clk 0:00:40.1]} 35. Rxa3 {[%clk 0:00:19.9]} 35... Be2 {[%clk 0:00:35.5]}
36. Re3 {[%clk 0:00:19.3]} 36... Bd1 {[%clk 0:00:32.7]} 37. a3 {[%clk
0:00:19.2]} 37... Rc6 {[%clk 0:00:32.9]} 38. h3 {[%clk 0:00:18.6]} 38... b5
{[%clk 0:00:32]} 39. Rb7 {[%clk 0:00:18.3]} 39... Rc4 {[%clk 0:00:19.7]} 40.
Rxb5 {[%clk 0:00:17.7]} 40... Rxd4 {[%clk 0:00:18.1]} 41. Rb6 {[%clk 0:00:18]}
41... Bc2 {[%clk 0:00:16.4]} 42. Rexe6 {[%clk 0:00:15.9]} 42... Be4+ {[%clk
0:00:15.2]} 43. Kf1 {[%clk 0:00:16]} 43... Bf3 {[%clk 0:00:11.8]} 44. Rxf6+
{[%clk 0:00:15.4]} 44... Ke4 {[%clk 0:00:08.5]} 45. Rbe6+ {[%clk 0:00:15.4]}
45... Kd3 {[%clk 0:00:08.3]} 46. Rxf3+ {[%clk 0:00:16]} 46... Kc4 {[%clk
0:00:08.6]} 47. Ree3 {[%clk 0:00:16.4]} 1-0